{"text_format":"1","workbook":"xlsx","n_sheets":4,"sheets":["Tableau à renseigner","RGPD","Paramètres","Versions"],"not_rendered":{"charts":0,"images":10,"macros":0,"external_links":2,"defined_names":7,"comments":1,"pivot_tables":0},"unopened":[],"bounds":{"document_bytes":16777216,"sheet_cells":100000,"rows_first":2000,"rows_last":500,"rows_between":2000,"halvings":0,"cell_chars":16384,"cell_head_chars":4096},"cells_cut":0,"cells_raw":0,"read":"whole","date_system":"1900"}

{"sheet":"Tableau à renseigner","index":0,"n_rows":125,"n_cols":8,"rows_kept":125,"cut":false,"hidden":false,"merged":[[5,2,5,7],[6,2,6,7],[54,5,54,6],[54,7,55,7],[15,5,15,6],[34,0,34,7],[28,0,33,2],[15,0,15,4],[24,3,24,4],[25,3,25,4],[41,0,41,7],[31,3,31,7],[36,5,36,7],[49,4,49,5],[32,3,32,7],[35,0,35,7],[20,0,20,1],[0,4,0,7],[30,3,30,7],[42,0,42,7],[39,0,39,7],[0,1,2,3],[19,0,19,7],[25,0,25,1],[13,0,13,4],[1,4,1,7],[9,0,9,7],[3,0,3,3],[2,4,3,7],[4,0,4,1],[5,0,5,1],[6,0,6,1],[4,2,4,7],[20,12,21,19],[11,8,11,17],[19,8,25,11],[17,8,17,18],[7,2,7,7],[17,0,17,4],[7,0,7,1],[8,0,8,7],[22,0,22,2],[22,3,22,4],[10,0,10,7],[11,0,11,7],[14,0,14,4],[18,5,18,6],[18,0,18,4],[67,5,67,6],[67,7,68,7],[37,5,37,7],[44,0,44,7],[52,5,52,6],[52,7,53,7],[43,0,43,7],[40,0,40,7],[36,0,36,3],[37,0,37,3],[49,6,49,7],[38,0,38,3],[23,3,23,4],[26,4,26,6],[38,5,38,7],[36,4,38,4],[20,3,20,4],[21,3,21,4],[16,0,16,7],[50,0,51,0],[50,3,50,4],[50,5,50,7],[51,3,51,4],[51,5,51,7],[45,4,45,7],[46,3,48,7],[27,5,27,7],[27,3,27,4],[27,0,27,2],[33,3,33,7],[28,3,28,7],[29,3,29,7]]}
[null,"FICHE COMMANDE N°2\nPROFESSION DE FOI\n AFFICHES ET OBJETS PROMOTIONNELS\nUNAAPE : Association n° W921000656",null,null,"A retourner à : \nUNAAPE\n42, rue Carvès\n92120 MONTROUGE"]
[null,null,null,null,"Année Scolaire"]
[null,null,null,null,"2021-2022"]
["Saisir les informations dans les champs en fond bleu"]
["Nom Association"]
["Ville"]
["Code Postal"]
["Mél association"]
[{"$f":"IF(RGPD!C9=\"OUI\",\"L'association donne son accord pour l'utilisation des données personnelles\",\"Merci de prendre connaissance de la note relative au RGPD en cliquant ici\")","v":"Merci de prendre connaissance de la note relative au RGPD en cliquant ici"}]
["(*) Il n'y a aucun frais de port pour les enlèvements au siège de l'UNAAPE. (**) Se renseigner auprès du secrétariat de l'UNAAPE.\nPour une livraison à domicile, si cette fiche est remplie sous excel, les frais de port sont calculés automatiquement."]
["                  PROFESSION DE FOI par lots de 250 exemplaires (Format A5 : 14,8 x 21 cm)"]
["La profession de foi vous est proposée  en couleur sur des feuilles A4, à raison de deux professions de foi par feuille (125 feuilles correspondent à 250 professions de foi). Seul le recto est imprimé, vous permettant une personnalisation au verso. Le découpage est laissé à vos soins afin de permettre le passage  en imprimante ou en photocopieur plus facile."]
[null,null,null,null,null,"Nbre de lots","P.U. par lot","Total"]
["Profession de foi en format A5 sur feuilles A4",null,null,null,null,null,5.8,{"$f":"F14*G14","v":0}]
["Nombre total de lots commandés et montant :  ",null,null,null,null,{"$f":"F14","v":0},null,{"$f":"H14","v":0}]
["COÛT DU TRANSPORT + EMBALLAGE (Si expédition)\n(à titre indicatif : poids de 2 lots A5 hors emballage = 1,350 kg)",null,null,null,null,"Choisir",null,{"$f":"IF(F16=\"Expédition\",LOOKUP(SUM(F15),D56:D147,E56:E147),0)","v":0}]
["                COMMANDE OBJETS PROMOTIONNELS"]
["Affiches personnalisées A4 170g (21 X 29,7; lot de 4)",null,null,null,null,null,3.5,{"$f":"F18*G18","v":0}]
["Port sur affiches (1 lot = 2 € ; ajouter 1 € par lot supplémentaire) (*)",null,null,null,null,"Choisir",null,{"$f":"IF(F19=\"Expédition\",LOOKUP(SUM(F18),F57:G67,H57:H67),0)","v":0}]
[]
["Totem enrouleur   60 x 200                                                                                            ",null,"L'unité","Port selon tarif postal**",null,null,35,{"$f":"F21*G21","v":0}]
["Stylos UNAAPE.                                            ",null,"Le lot de 10 stylos.  ","Port selon tarif postal**",null,null,4,0]
["Calicot personnalisable  (Plusieurs tailles disponibles)",null,null,"Livraison gratuite",null,null,"Choisir",{"$f":"IF(F23=\"\",\"\",IF(G23=\"Choisir\",\"\",Paramètres!Z11*F23))","v":""}]
["Badge UNAAPE.        ",null,"Le lot de 5 badges. ","Port selon tarif postal**",null,null,2.5,0]
["Sacoche UNAAPE",null,"L'unité","Port selon tarif postal**",null,null,3.5,0]
["Ballons de baudruche UNAAPE   ",null,"Le lot de 25 ballons.","Port selon tarif postal**",null,null,3.5,0]
[{"$f":"IF(F18>0,IF(D29=\"\",IF(D30=\"\",IF(D31=\"\",IF(D32=\"\",IF(D33=\"\",IF(D34=\"\",\"Ecrire Vierge ou le texte de l'affiche souhaité\",\"\"),\"\"),\"\"),\"\"),\"\"),\"\"),\"\")","v":""},null,null,null," Total commande :",null,null,{"$f":"IF(SUM(H15:H26)=0,\"\",SUM(H15:H26))","v":""}]
["Informations pour votre affiche à compléter  (visuel  ci-contre)",null,null,"Version couleur",null,"Version noir et blanc"]
["Texte pour affiche (maximum 4 lignes)\nSi aucun texte écrire \"vierge\""]
[]
[]
[]
[]
[]
["               MODE D'ACHEMINEMENT"]
["Enlèvement au siège de l'UNAAPE : coordonnées (nom et téléphone) de la personne à contacter"]
[null,null,null,null,"Jour et horaire envisagés pour le retrait"]
[]
[]
["Livraison à domicile : adresse complète du lieu de livraison souhaité + nom et téléphone du contact"]
[]
[]
[]
[]
["Sur votre règlement, n'oubliez pas de mentionner le code postal et la ville du siège de votre association."]
["Règlement :",null,"Par chèque à l'UNAAPE","ou","Virement sur le compte de l'UNAAPE"]
["N° de chèque",null,null,"IBAN : FR76 3006 6107 3100 0203 7030 190\nBIC : CMCIFRPP"]
["Banque"]
["Date règlement"]
["Fiche établie par",null,null,null,"Téléphone "]
["Partie réservée à l'UNAAPE","Traitement gestion","Enregistrement règlement","nº de facture",null,"Suivi association"]
[]
[]
[]
[null,null,null,"nombre de lots A5 ","Tarifs ","Nombre",null,"Tarif"]
[null,null,null,1,{"$f":"11+(0.85*D56)","v":11.85},"de","à"]
[null,null,null,2,{"$f":"11+(0.85*D57)","v":12.7},0,0.99,0]
[null,null,null,3,13.55,1,1.99,2]
[null,null,null,4,14.4,2,2.99,3]
[null,null,null,5,15.25,3,3.99,4]
[null,null,null,6,16.100000000000001,4,3.99,5]
[null,null,null,7,16.95,5,4.99,6]
[null,null,null,8,17.8,6,{"$f":"G62+1","v":5.99},7]
[null,null,null,9,18.649999999999999,7,{"$f":"G63+1","v":6.99},8]
[null,null,null,10,19.5,8,7.99,9]
[null,null,null,11,20.350000000000001,9,8.99,10]
[null,null,null,12,21.2,10,9.99,11]
[null,null,null,13,22.049999999999997,"Nombre",null,"Tarif"]
[null,null,null,14,22.9,"de","à"]
[null,null,null,15,23.75,1,1.99,2.4]
[null,null,null,16,24.6,2,2.99,3.4]
[null,null,null,17,25.45,3,3.99,4.4000000000000004]
[null,null,null,18,26.299999999999997,4,3.99,5.4]
[null,null,null,19,27.15,5,{"$f":"G73+1","v":4.99},6.4]
[null,null,null,20,28,6,{"$f":"G74+1","v":5.99},7.4]
[null,null,null,21,28.849999999999998,7,6.99,8.4]
[null,null,null,22,29.7,8,7.99,9.4]
[null,null,null,23,30.55,9,8.99,10.4]
[null,null,null,24,31.4,10,9.99,11.4]
[null,null,null,25,32.25]
[null,null,null,26,33.099999999999994]
[null,null,null,27,33.950000000000003]
[null,null,null,28,34.799999999999997]
[null,null,null,29,35.65]
[null,null,null,30,36.5]
[null,null,null,31,37.349999999999994]
[null,null,null,32,38.200000000000003]
[null,null,null,33,39.049999999999997]
[null,null,null,34,39.9]
[null,null,null,35,40.75]
[null,null,null,{"$f":"+D90+1","v":36},41.599999999999994]
[null,null,null,{"$f":"+D91+1","v":37},42.45]
[null,null,null,38,43.3]
[null,null,null,39,44.15]
[null,null,null,{"$f":"+D94+1","v":40},45]
[null,null,null,41,45.85]
[null,null,null,42,46.699999999999996]
[null,null,null,43,47.55]
[null,null,null,44,48.4]
[null,null,null,45,49.25]
[null,null,null,46,50.1]
[null,null,null,47,50.949999999999996]
[null,null,null,48,51.8]
[null,null,null,49,52.65]
[null,null,null,50,53.5]
[null,null,null,51,54.35]
[null,null,null,52,55.199999999999996]
[null,null,null,53,56.05]
[null,null,null,54,56.9]
[null,null,null,55,57.75]
[null,null,null,56,58.6]
[null,null,null,57,59.449999999999996]
[null,null,null,58,60.3]
[null,null,null,{"$f":"+D113+1","v":59},61.15]
[null,null,null,{"$f":"+D114+1","v":60},62]
[null,null,null,61,62.85]
[null,null,null,62,63.699999999999996]
[null,null,null,63,64.55]
[null,null,null,{"$f":"+D118+1","v":64},65.400000000000006]
[null,null,null,{"$f":"+D119+1","v":65},66.25]
[null,null,null,66,{"$f":"11+(0.85*D121)","v":67.099999999999994}]
[null,null,null,67,67.949999999999989]
[null,null,null,68,68.8]
[null,null,null,{"$f":"+D123+1","v":69},69.650000000000006]
[null,null,null,{"$f":"+D124+1","v":70},70.5]

{"sheet":"RGPD","index":1,"n_rows":13,"n_cols":3,"rows_kept":13,"cut":false,"hidden":false,"merged":[[0,0,0,2],[7,1,7,2],[12,1,12,2]]}
[]
[null,"Montrouge,",{"$f":"TODAY()","v":"2022-06-17"}]
[]
[null,"Chère Présidente,"]
[null,"Cher Pésident,"]
[]
[]
[null,"Le nouveau règlement général européen sur la protection des données personnelles entré en vigueur le 25 mai 2018 vous impose de faire connaître et de vous assurer de la compréhension par les personnes concernées de l'utilisation de leurs données personnelles que vous nous transmettez dans les fiches Unions.\n\nL'UNAAPE vous assure que toute donnée envoyée  par nos associations affiliées  n'est aucunement  transmise à toute entité tierce, en dehors de notre partenaire AXA pour toute souscription d'une police d'assurance :\n\n         - Données issues de l'association pour les contrats \"Responsabilité civile\" et \"Protection juridique\" ;\n         - Données personnelles des familles pour toute souscription d'une assurance scolaire.\n\nConcernant les données personnelles qui peuvent être consultées sur notre site internet, elles sont soumises à un accord préalable de chaque association qui doit donc en informer également tout adhérent concerné.\n\nNous rappelons que toute personne a le droit de consulter et/ou rectifier à tout moment ses données personnelles.\n"]
[null," -  Autorisez-vous l'utilisation des données personnelles telles qu'elles sont définies ci-dessus ?  ","OUI ou NON"]
[]
[null," -  Avez-vous compris l'utilisation des données personnelles telles qu'elles sont définies ci-dessus ?  ","OUI ou NON"]
[]
[null,"Vous remerciant d'avoir pris le temps de prendre connaissance de ces informations et d'y avoir répondu.\n\nUNAAPEment."]

{"sheet":"Paramètres","index":2,"n_rows":31,"n_cols":26,"rows_kept":31,"cut":false,"hidden":true,"merged":[[0,8,0,10],[13,9,13,10]]}
[null,null,null,null,null,null,null,null,"Formule Affiche",null,null,null,null,null,null,"Frais-port"]
[null,null,null,null,null,null,null,null,null,{"$f":"'Tableau à renseigner'!F18*'Tableau à renseigner'!G18","v":0},{"$f":"IF('Tableau à renseigner'!F18=\"\",\"\",J2)","v":""},null,null,null,null,"Choisir",null,null,null,null,null,"OUI ou NON"]
[null,null,null,null,null,null,null,null,{"$f":"'Tableau à renseigner'!F18","v":0},{"$f":"I3*1.5","v":0},null,null,null,null,null,"Expédition",null,null,null,null,null,"OUI"]
[null,null,null,null,null,null,null,null,null,null,null,null,null,null,null,"Enlèvement",null,null,null,null,null,"NON"]
[null,null,null,null,"de","Tarif"]
[null,null,null,null,0,0,null,null,null,{"$f":"VLOOKUP($I$3,J16:K19,2,TRUE)","v":0},{"$f":"IF('Tableau à renseigner'!F18=\"\",\"\",J6)","v":""}]
[null,null,null,null,1,9.1999999999999993,null,null,null,{"$f":"IF('Tableau à renseigner'!F19=\"Expedition\",Paramètres!K6,\"\")","v":""}]
[null,null,null,null,2,11]
[null,null,null,null,3,13,null,null,null,null,null,null,null,null,null,null,null,null,null,null,null,"Choisir",null,null,null,{"$f":"'Tableau à renseigner'!G23","v":"Choisir"}]
[null,null,null,null,4,15,null,null,null,null,null,null,null,null,null,null,null,null,null,null,null,"300 X 60",23.7,{"$f":"ROUNDUP(W10+(W10*20/100),0)","v":29}]
[null,null,null,null,5,17.5,null,null,null,null,null,null,null,null,null,null,null,null,null,null,null,"300 X 70",24.53,{"$f":"ROUNDUP(W11+(W11*20/100),0)","v":30},null,{"$f":"VLOOKUP(('Tableau à renseigner'!G23),V9:X15,3,0)","v":0}]
[null,null,null,null,6,19.5,null,null,null,null,null,null,null,null,null,null,null,null,null,null,null,"300 X 80",27.32,33]
[null,null,null,null,7,21.5,null,null,null,"(1lot ou 2 lots =1€70 ; 3 lots et plus = 2€60",null,null,null,null,null,null,null,null,null,null,null,"200 X 60",17.600000000000001,22]
[null,null,null,null,8,23.5,null,null,null,"Affiches",null,null,null,null,null,null,null,null,null,null,null,"200 X 70",19.7,24]
[null,null,null,null,9,26,null,null,null,"de","Tarif",null,null,null,null,null,null,null,null,null,null,"200 X 80",21.8,27]
[null,null,null,null,10,28,null,null,null,0,0]
[null,null,null,null,11,30,null,null,null,1,1.7]
[null,null,null,null,12,33,null,null,null,3,2.6]
[null,null,null,null,13,35]
[null,null,null,null,14,37]
[null,null,null,null,15,39]
[null,null,null,null,16,41]
[null,null,null,null,17,43]
[null,null,null,null,18,46]
[null,null,null,null,19,48]
[null,null,null,null,20,51]
[null,null,null,null,21,53]
[null,null,null,null,31,56]
[null,null,null,null,41,62]
[null,null,null,null,51,70]
[null,null,null,null,90,88]

{"sheet":"Versions","index":3,"n_rows":8,"n_cols":4,"rows_kept":8,"cut":false,"hidden":true,"merged":[]}
["version","Date","Auteur","Modification"]
["1.0","2010-07-26","YC","Création document"]
["1.3.1","2012-04-03","JFI","2012-2013,  MenForme cond erreur saisie, pliages, Expedition"]
["1.4.0",null,"JFI","renumotation + MàJ et corrections"]
["1.4.1","2012-04-12","YCA"]
["1.4.2","2012-04-13","JFI","correction MeF conditon + integration tableau des frais de port"]
["1.4.3","2012-05-04","JFI","Correction frais port Attest assur"]
["1.4.4","2014-08-28","NH","Retrait ligne profession foi A5 simple + mise en évidence  \"saisir les informations… en blanc sur fond rouge\" et changement tarifs stylos"]